fUSD/lending_fUSD_20260617
["ID","MTS","AMOUNT","RATE_DAILY","PERIOD"]
[425296443,1781659838000,-784.68022449,0.00029696,7]
[425296453,1781659838000,-219.25280744,0.00029696,7]
[425296525,1781659839000,-151.0,0.00029713,2]
[425296526,1781659839000,-573.45,0.00029713,2]
[425296530,1781659839000,-644.19,0.00029713,2]
[425296528,1781659839000,-151.0,0.00029713,2]
[425296523,1781659839000,-151.0,0.00029713,2]
[425296521,1781659839000,-573.42,0.00029713,2]
[425296524,1781659839000,-185.13,0.00029713,2]
[425296520,1781659839000,-573.42,0.00029713,2]
[425296531,1781659839000,-396.19,0.00029713,2]
[425296529,1781659839000,-573.42,0.00029713,2]
[425296522,1781659839000,-151.0,0.00029713,2]
[425296527,1781659839000,-151.0,0.00029713,2]
[425296548,1781659839000,-151.0,0.00029714,2]
[425296533,1781659839000,-396.19,0.00029713,2]
[425296539,1781659839000,-151.0,0.00029713,2]
[425296535,1781659839000,-151.0,0.00029713,2]
[425296536,1781659839000,-151.0,0.00029713,2]
[425296541,1781659839000,-573.42,0.00029713,2]
[425296538,1781659839000,-151.0,0.00029713,2]
[425296534,1781659839000,-644.15,0.00029713,2]
[425296543,1781659839000,-151.0,0.00029714,2]
[425296540,1781659839000,-573.42,0.00029713,2]
[425296537,1781659839000,-151.0,0.00029713,2]
[425296545,1781659839000,-151.0,0.00029714,2]
[425296514,1781659839000,-151.0,0.00029713,2]
[425296532,1781659839000,-644.73,0.00029713,2]
[425296513,1781659839000,-185.14,0.00029713,2]
[425296491,1781659839000,-185.13,0.00029712,2]
[425296517,1781659839000,-573.42,0.00029713,2]
[425296551,1781659839000,-185.13,0.00029714,2]
[425296493,1781659839000,-151.0,0.00029712,2]
[425296492,1781659839000,-151.0,0.00029712,2]
[425296490,1781659839000,-185.13,0.00029712,2]
[425296495,1781659839000,-151.0,0.00029712,2]
[425296505,1781659839000,-573.42,0.00029713,2]
[425296496,1781659839000,-151.0,0.00029712,2]
[425296494,1781659839000,-151.0,0.00029712,2]
[425296500,1781659839000,-151.0,0.00029713,2]
[425296498,1781659839000,-573.34,0.00029712,2]
[425296506,1781659839000,-151.0,0.00029713,2]
[425296499,1781659839000,-573.42,0.00029712,2]
[425296512,1781659839000,-151.0,0.00029713,2]
[425296497,1781659839000,-573.42,0.00029712,2]
[425296502,1781659839000,-151.0,0.00029713,2]
[425296504,1781659839000,-151.0,0.00029713,2]
[425296503,1781659839000,-185.13,0.00029713,2]
[425296508,1781659839000,-151.0,0.00029713,2]
[425296518,1781659839000,-151.0,0.00029713,2]
[425296519,1781659839000,-151.0,0.00029713,2]
[425296515,1781659839000,-151.0,0.00029713,2]
[425296516,1781659839000,-573.44,0.00029713,2]
[425296511,1781659839000,-151.0,0.00029713,2]
[425296509,1781659839000,-573.42,0.00029713,2]
[425296510,1781659839000,-151.0,0.00029713,2]
[425296507,1781659839000,-151.0,0.00029713,2]
[425296501,1781659839000,-185.13,0.00029713,2]
[425296561,1781659839000,-151.0,0.00029714,2]
[425296581,1781659839000,-573.42,0.00029714,2]
[425296562,1781659839000,-185.13,0.00029714,2]
[425296578,1781659839000,-185.13,0.00029714,2]
[425296611,1781659839000,-1022.96,0.000299,30]
[425296582,1781659839000,-573.42,0.00029714,2]
[425296584,1781659839000,-185.14,0.00029714,2]
[425296588,1781659839000,-151.0,0.00029714,2]
[425296594,1781659839000,-250.0,0.00029759,14]
[425296591,1781659839000,-151.5,0.00029714,2]
[425296596,1781659839000,-250.0,0.00029777,7]
[425296592,1781659839000,-607.80818982,0.00029739,2]
[425296593,1781659839000,-250.0,0.00029759,14]
[425296598,1781659839000,-538.0,0.00029807,4]
[425296595,1781659839000,-250.0,0.00029759,14]
[425296599,1781659839000,-607.80818982,0.00029836,2]
[425296590,1781659839000,-573.45,0.00029714,2]
[425296589,1781659839000,-151.0,0.00029714,2]
[425296597,1781659839000,-607.80818982,0.00029787,2]
[425296601,1781659839000,-4676.7489742,0.00029846,2]
[425296600,1781659839000,-2129.1778594,0.00029846,2]
[425296603,1781659839000,-607.80818982,0.00029884,2]
[425296604,1781659839000,-300.0,0.00029899,10]
[425296606,1781659839000,-300.0,0.00029899,10]
[425296607,1781659839000,-500.0,0.000299,60]
[425296608,1781659839000,-500.0,0.000299,60]
[425296550,1781659839000,-185.13,0.00029714,2]
[425296610,1781659839000,-151.0,0.000299,3]
[425296580,1781659839000,-185.13,0.00029714,2]
[425296579,1781659839000,-151.0,0.00029714,2]
[425296609,1781659839000,-1586.0,0.000299,15]
[425296586,1781659839000,-151.0,0.00029714,2]
[425296583,1781659839000,-151.0,0.00029714,2]
[425296557,1781659839000,-576.0,0.00029714,2]
[425296553,1781659839000,-151.0,0.00029714,2]
[425296552,1781659839000,-151.0,0.00029714,2]
[425296555,1781659839000,-151.0,0.00029714,2]
[425296559,1781659839000,-196.08,0.00029714,2]
[425296558,1781659839000,-185.13,0.00029714,2]
[425296556,1781659839000,-151.0,0.00029714,2]
[425296560,1781659839000,-151.0,0.00029714,2]
[425296563,1781659839000,-151.0,0.00029714,2]
[425296566,1781659839000,-573.45,0.00029714,2]
[425296564,1781659839000,-151.0,0.00029714,2]
[425296574,1781659839000,-573.42,0.00029714,2]
[425296554,1781659839000,-573.43,0.00029714,2]
[425296573,1781659839000,-151.0,0.00029714,2]
[425296575,1781659839000,-151.0,0.00029714,2]
[425296576,1781659839000,-151.0,0.00029714,2]
[425296577,1781659839000,-573.42,0.00029714,2]
[425296587,1781659839000,-185.13,0.00029714,2]
[425296569,1781659839000,-151.0,0.00029714,2]
[425296585,1781659839000,-423.83,0.00029714,2]
[425296567,1781659839000,-573.42,0.00029714,2]
[425296565,1781659839000,-185.13,0.00029714,2]
[425296568,1781659839000,-151.0,0.00029714,2]
[425296571,1781659839000,-573.42,0.00029714,2]
[425296572,1781659839000,-151.0,0.00029714,2]
[425296570,1781659839000,-151.0,0.00029714,2]
[425296654,1781659840000,-108682.35159744,0.0003,5]
[425296646,1781659840000,-241.98535978,0.0002999,2]
[425296642,1781659840000,-420.769525,0.00029978,7]
[425296648,1781659840000,-300.0,0.00029999,10]
[425296647,1781659840000,-300.0,0.00029999,10]
[425296645,1781659840000,-154.13631634,0.00029986,20]
[425296641,1781659840000,-420.769525,0.00029978,7]
[425296643,1781659840000,-607.80818982,0.00029981,2]
[425296649,1781659840000,-300.0,0.00029999,10]
[425296644,1781659840000,-1022.96,0.00029986,30]
[425296640,1781659840000,-420.769525,0.00029978,7]
[425296656,1781659840000,-993.94218713,0.0003,60]
[425296651,1781659840000,-500.0,0.00029999,14]
[425296650,1781659840000,-500.0,0.00029999,14]
[425296652,1781659840000,-242.0,0.0003,5]
[425296653,1781659840000,-62957.77241443,0.0003,2]
[425296657,1781659840000,-220.66126549,0.0003,2]
[425296658,1781659840000,-22734.46788696,0.0003,7]
[425296659,1781659840000,-22734.46788696,0.0003,7]
[425296663,1781659840000,-1127.07683525,0.0003,2]
[425296662,1781659840000,-2000.0,0.0003,14]
[425296661,1781659840000,-1000.0,0.0003,2]
[425296638,1781659840000,-151.0,0.00029965,30]
[425296655,1781659840000,-11000.0,0.0003,10]
[425296639,1781659840000,-420.769525,0.00029978,7]
[425296619,1781659840000,-200.0,0.000299,2]
[425296634,1781659840000,-205.0,0.00029965,30]
[425296616,1781659840000,-15542.92542734,0.000299,2]
[425296613,1781659840000,-15542.92542734,0.000299,2]
[425296614,1781659840000,-15542.92542734,0.000299,2]
[425296615,1781659840000,-15542.92542734,0.000299,2]
[425296612,1781659840000,-15542.92542734,0.000299,2]
[425296617,1781659840000,-15542.92542734,0.000299,2]
[425296621,1781659840000,-1022.96,0.00029929,30]
[425296622,1781659840000,-607.80818982,0.00029933,2]
[425296620,1781659840000,-500.0,0.000299,60]
[425296624,1781659840000,-1022.96,0.00029957,30]
[425296618,1781659840000,-15542.92542734,0.000299,2]
[425296623,1781659840000,-152.0,0.00029956,30]
[425296626,1781659840000,-156.0,0.00029958,30]
[425296625,1781659840000,-236.0,0.00029958,30]
[425296627,1781659840000,-15542.92542734,0.0002996,2]
[425296628,1781659840000,-155.0,0.00029965,30]
[425296637,1781659840000,-247.0,0.00029965,30]
[425296629,1781659840000,-153.0,0.00029965,30]
[425296630,1781659840000,-314.0,0.00029965,30]
[425296636,1781659840000,-155.0,0.00029965,30]
[425296633,1781659840000,-153.0,0.00029965,30]
[425296631,1781659840000,-430.0,0.00029965,30]
[425296632,1781659840000,-160.0,0.00029965,30]
[425296635,1781659840000,-151.0,0.00029965,30]
[425296664,1781659840000,-1855.75109439,0.0003,2]
[425296660,1781659840000,-20292.05703107,0.0003,2]
[425296668,1781659840000,-369.71199633,0.0003,30]
[425296697,1781659840000,-151.0,0.0003,7]
[425296694,1781659840000,-151.0,0.0003,7]
[425296696,1781659840000,-151.0,0.0003,7]
[425296700,1781659840000,-151.0,0.0003,7]
[425296698,1781659840000,-151.0,0.0003,7]
[425296699,1781659840000,-151.0,0.0003,7]
[425296704,1781659840000,-194.352528,0.0003,7]
[425296706,1781659840000,-420.769525,0.0003,7]
[425296714,1781659840000,-420.769525,0.0003,7]
[425296703,1781659840000,-194.352528,0.0003,7]
[425296705,1781659840000,-194.352528,0.0003,7]
[425296715,1781659840000,-151.0,0.0003,3]
[425296708,1781659840000,-420.769525,0.0003,7]
[425296709,1781659840000,-420.769525,0.0003,7]
[425296711,1781659840000,-420.769525,0.0003,7]
[425296710,1781659840000,-420.769525,0.0003,7]
[425296707,1781659840000,-420.769525,0.0003,7]
[425296712,1781659840000,-420.769525,0.0003,7]
[425296716,1781659840000,-200.0,0.0003,2]
[425296717,1781659840000,-387.45,0.0003,2]
[425296718,1781659840000,-528.84,0.0003,2]
[425296719,1781659840000,-214.25,0.0003,2]
[425296669,1781659840000,-262.16201594,0.0003,7]
[425296693,1781659840000,-299.347245,0.0003,7]
[425296695,1781659840000,-151.0,0.0003,7]
[425296702,1781659840000,-194.352528,0.0003,7]
[425296692,1781659840000,-151.0,0.0003,7]
[425296666,1781659840000,-166.37039314,0.0003,2]
[425296665,1781659840000,-1000.0,0.0003,2]
[425296667,1781659840000,-157.30076928,0.0003,2]
[425296701,1781659840000,-151.0,0.0003,7]
[425296675,1781659840000,-10032.57138267,0.0003,5]
[425296671,1781659840000,-3402.39,0.0003,30]
[425296672,1781659840000,-9848.999999,0.0003,60]
[425296673,1781659840000,-4161.0,0.0003,3]
[425296674,1781659840000,-77054.90073465,0.0003,5]
[425296679,1781659840000,-1500.0,0.0003,3]
[425296678,1781659840000,-1500.0,0.0003,5]
[425296677,1781659840000,-200.0,0.0003,11]
[425296670,1781659840000,-3000.0,0.0003,10]
[425296682,1781659840000,-2234.84,0.0003,2]
[425296676,1781659840000,-275.37822029,0.0003,2]
[425296690,1781659840000,-151.0,0.0003,7]
[425296689,1781659840000,-612.349924,0.0003,7]
[425296687,1781659840000,-612.349924,0.0003,7]
[425296686,1781659840000,-612.349924,0.0003,7]
[425296688,1781659840000,-612.349924,0.0003,7]
[425296683,1781659840000,-11872.84,0.0003,2]
[425296684,1781659840000,-25000.0,0.0003,2]
[425296680,1781659840000,-2076.34166519,0.0003,10]
[425296681,1781659840000,-211.9,0.0003,11]
[425296685,1781659840000,-2500.0,0.0003,2]
[425296737,1781659841000,-300.0,0.00030129,10]
[425296731,1781659841000,-1022.96,0.00030071,30]
[425296732,1781659841000,-15000.0,0.000301,40]
[425296735,1781659841000,-306.35694215,0.0003012,2]
[425296733,1781659841000,-1022.96,0.000301,30]
[425296734,1781659841000,-306.35694215,0.0003012,2]
[425296736,1781659841000,-1022.96,0.00030129,30]
[425296730,1781659841000,-1022.96,0.00030043,30]
[425296722,1781659841000,-1022.96,0.00030014,30]
[425296727,1781659841000,-883.18391463,0.0003003,2]
[425296726,1781659841000,-607.80818982,0.0003003,2]
[425296724,1781659841000,-207.06706599,0.0003003,2]
[425296725,1781659841000,-15542.92542734,0.0003003,2]
[425296723,1781659841000,-300.0,0.00030029,10]
[425296721,1781659841000,-352.28,0.0003,2]
[425296720,1781659841000,-213.69,0.0003,2]
[425296729,1781659841000,-399.0,0.00030037,2]
[425296728,1781659841000,-200.0,0.00030037,2]
[425296738,1781659841000,-733.70159928,0.00030129,10]
[425296754,1781659841000,-311.67,0.00028852,7]
[425296750,1781659841000,-553437.4413881,0.0003013,7]
[425296740,1781659841000,-300.0,0.00030129,10]
[425296757,1781659841000,-292.78280559,0.00028915,2]
[425296758,1781659841000,-156.03400438,0.00028947,7]
[425296756,1781659841000,-18.88719441,0.00028915,2]
[425296752,1781659841000,-311.67,0.00028788,30]
[425296755,1781659841000,-311.67,0.00028883,30]
[425296751,1781659841000,-638.41825848,0.0003013,7]
[425296746,1781659841000,-300.0,0.00030129,10]
[425296753,1781659841000,-311.67,0.0002882,2]
[425296747,1781659841000,-300.0,0.00030129,10]
[425296743,1781659841000,-435.42,0.00030129,14]
[425296748,1781659841000,-300.0,0.00030129,10]
[425296739,1781659841000,-300.0,0.00030129,10]
[425296745,1781659841000,-300.0,0.00030129,10]
[425296744,1781659841000,-150.0,0.00030129,20]
[425296742,1781659841000,-300.0,0.00030129,10]
[425296741,1781659841000,-300.0,0.00030129,10]
[425296749,1781659841000,-300.0,0.00030129,10]
[425296766,1781659842000,-311.67,0.00029042,7]
[425296763,1781659842000,-150.96767623,0.00028979,30]
[425296764,1781659842000,-160.70232377,0.00028979,30]
[425296762,1781659842000,-155.63599562,0.00028947,7]
[425296765,1781659842000,-311.67,0.0002901,2]
[425296768,1781659842000,-113.28000773,0.00029074,30]
[425296771,1781659842000,-311.67,0.00029169,30]
[425296769,1781659842000,-311.67,0.00029105,2]
[425296775,1781659842000,-415.97015792,0.00029634,30]
[425296772,1781659842000,-311.67,0.00029201,2]
[425296770,1781659842000,-311.67,0.00029137,7]
[425296773,1781659842000,-311.73,0.00029232,7]
[425296774,1781659842000,-306.4944824,0.00029634,30]
[425296767,1781659842000,-198.38999227,0.00029074,30]
[425296776,1781659843000,-246.75535968,0.00029634,30]
[425296778,1781659843000,-969.22,0.00029802,7]
[425296786,1781659843000,-4458.89716483,0.0002959,10]
[425296781,1781659843000,-995.19,0.00029802,7]
[425296777,1781659843000,-995.19,0.00029634,30]
[425296779,1781659843000,-2090.43,0.00029802,7]
[425296787,1781659843000,-467.5,0.00024658,2]
[425296791,1781659843000,-926.94048003,0.0003013,7]
[425296789,1781659843000,-175.80798028,0.0003,2]
[425296783,1781659843000,-999867.4566233,0.0003013,7]
[425296790,1781659843000,-4556.76248447,0.0003013,7]
[425296788,1781659843000,-6265.78283517,0.0002959,10]
[425296798,1781659845000,-183.80670187,0.00026099,30]
[425296797,1781659845000,-467.5,0.00025811,7]
[425296794,1781659845000,-467.5,0.00024946,7]
[425296795,1781659845000,-467.5,0.00025234,30]
[425296793,1781659845000,-163.17817766,0.0002,2]
[425296796,1781659845000,-467.5,0.00025523,2]
[425296799,1781659846000,-283.69329813,0.00026099,30]
[425296800,1781659846000,-452.05923687,0.00026388,2]
[425296813,1781659920000,208.82720394,0.00029599,120]
[425296816,1781660064000,-151.77,0.00018,2]
[425296817,1781660172000,1041.20645251,0.00030137,120]
[425296818,1781660274000,-151.0,0.00018001,2]
[425296821,1781660603000,-151.0,0.00018001,2]
[425296822,1781660758000,-342.44588552,0.00018,2]
[425296830,1781661031000,-150.0,0.00018,2]
[425296895,1781661032000,-150.0,0.00018001,2]
[425296892,1781661032000,-150.0,0.00018001,2]
[425296891,1781661032000,-150.0,0.00018001,2]
[425296889,1781661032000,-153.0,0.00018,2]
[425296888,1781661032000,-152.0,0.00018,2]
[425296890,1781661032000,-150.0,0.00018,2]
[425296884,1781661032000,-150.0,0.00018,2]
[425296897,1781661032000,-150.0,0.00018001,2]
[425296885,1781661032000,-152.0,0.00018,2]
[425296877,1781661032000,-151.0,0.00018,2]
[425296882,1781661032000,-150.0,0.00018,2]
[425296880,1781661032000,-150.0,0.00018,2]
[425296886,1781661032000,-151.0,0.00018,2]
[425296887,1781661032000,-152.0,0.00018,2]
[425296879,1781661032000,-151.0,0.00018,2]
[425296894,1781661032000,-151.0,0.00018001,2]
[425296876,1781661032000,-151.0,0.00018,2]
[425296875,1781661032000,-151.0,0.00018,2]
[425296883,1781661032000,-152.0,0.00018,2]
[425296893,1781661032000,-150.0,0.00018001,2]
[425296878,1781661032000,-150.0,0.00018,2]
[425296899,1781661032000,-153.0,0.00018001,2]
[425296896,1781661032000,-150.0,0.00018001,2]
[425296917,1781661032000,-151.0,0.00018001,2]
[425296918,1781661032000,-153.0,0.00018001,2]
[425296915,1781661032000,-151.0,0.00018001,2]
[425296916,1781661032000,-150.0,0.00018001,2]
[425296914,1781661032000,-150.0,0.00018001,2]
[425296911,1781661032000,-152.0,0.00018001,2]
[425296913,1781661032000,-152.0,0.00018001,2]
[425296910,1781661032000,-151.0,0.00018001,2]
[425296908,1781661032000,-151.0,0.00018001,2]
[425296881,1781661032000,-152.0,0.00018,2]
[425296909,1781661032000,-153.0,0.00018001,2]
[425296898,1781661032000,-151.0,0.00018001,2]
[425296912,1781661032000,-153.0,0.00018001,2]
[425296907,1781661032000,-150.0,0.00018001,2]
[425296904,1781661032000,-151.0,0.00018001,2]
[425296905,1781661032000,-150.0,0.00018001,2]
[425296901,1781661032000,-150.0,0.00018001,2]
[425296900,1781661032000,-151.0,0.00018001,2]
[425296903,1781661032000,-150.0,0.00018001,2]
[425296902,1781661032000,-152.0,0.00018001,2]
[425296906,1781661032000,-151.0,0.00018001,2]
[425296952,1781661033000,-153.0,0.0002,2]
[425296948,1781661033000,-338.0,0.0002,2]
[425296951,1781661033000,-14824.54903468,0.0002,2]
[425296950,1781661033000,-2347.86096532,0.0002,2]
[425296949,1781661033000,-159.0,0.0002,2]
[425296947,1781661033000,-240.0,0.0002,2]
[425296946,1781661033000,-780.12208895,0.0002,2]
[425296945,1781661033000,-500.0,0.00019999,2]
[425296953,1781661033000,-270.0,0.0002,2]
[425296960,1781661033000,-780.12208895,0.000204,2]
[425296956,1781661033000,-397.0,0.0002,2]
[425296962,1781661033000,-780.12208895,0.000206,2]
[425296943,1781661033000,-558.21221763,0.00019999,2]
[425296955,1781661033000,-408.0,0.0002,2]
[425296961,1781661033000,-166.66,0.00020577,2]
[425296958,1781661033000,-780.12208895,0.000202,2]
[425296957,1781661033000,-406.0,0.0002,2]
[425296959,1781661033000,-411.0,0.00020342,2]
[425296963,1781661033000,-780.12208895,0.000208,2]
[425296965,1781661033000,-338.0,0.00021,2]
[425296954,1781661033000,-409.0,0.0002,2]
[425296944,1781661033000,-500.0,0.00019999,2]
[425296937,1781661033000,-171.61482292,0.00019999,2]
[425296942,1781661033000,-500.0,0.00019999,2]
[425296966,1781661033000,-166.130233,0.00021,2]
[425296928,1781661033000,-152.0,0.00018001,2]
[425296920,1781661033000,-152.0,0.00018001,2]
[425296919,1781661033000,-150.0,0.00018001,2]
[425296922,1781661033000,-151.0,0.00018001,2]
[425296921,1781661033000,-150.0,0.00018001,2]
[425296923,1781661033000,-151.0,0.00018001,2]
[425296926,1781661033000,-151.0,0.00018001,2]
[425296927,1781661033000,-151.0,0.00018001,2]
[425296924,1781661033000,-151.0,0.00018001,2]
[425296925,1781661033000,-150.0,0.00018001,2]
[425296929,1781661033000,-151.0,0.00018001,2]
[425296931,1781661033000,-151.0,0.00018002,2]
[425296930,1781661033000,-150.0,0.00018002,2]
[425296938,1781661033000,-500.0,0.00019999,2]
[425296939,1781661033000,-500.0,0.00019999,2]
[425296933,1781661033000,-151.0,0.0001804,2]
[425296935,1781661033000,-150.0,0.0001864,2]
[425296940,1781661033000,-500.0,0.00019999,2]
[425296936,1781661033000,-329.09938662,0.00019999,2]
[425296934,1781661033000,-151.0,0.00018159,2]
[425296941,1781661033000,-500.0,0.00019999,2]
[425296932,1781661033000,-151.0,0.0001801,2]
[425296968,1781661033000,-270.0,0.00021,2]
[425296969,1781661033000,-166.66,0.0002101,2]
[425296995,1781661033000,-151.0,0.000235,2]
[425296996,1781661033000,-151.0,0.000235,2]
[425296997,1781661033000,-151.0,0.000235,2]
[425296998,1781661033000,-151.0,0.000235,2]
[425296999,1781661033000,-151.0,0.000235,2]
[425297000,1781661033000,-151.0,0.000235,2]
[425297002,1781661033000,-151.0,0.000235,2]
[425297001,1781661033000,-151.0,0.000235,2]
[425297003,1781661033000,-151.0,0.000235,2]
[425296992,1781661033000,-270.0,0.00023,2]
[425297007,1781661033000,-151.0,0.000235,2]
[425297006,1781661033000,-151.0,0.000235,2]
[425297008,1781661033000,-240.0,0.00024,2]
[425297005,1781661033000,-151.0,0.000235,2]
[425297010,1781661033000,-153.0,0.00024,2]
[425297009,1781661033000,-338.0,0.00024,2]
[425297014,1781661033000,-25.94802223,0.00024658,2]
[425297011,1781661033000,-270.0,0.00024,2]
[425297012,1781661033000,-353.9448,0.000244,7]
[425297013,1781661033000,-1000.0,0.00024658,2]
[425297004,1781661033000,-151.0,0.000235,2]
[425296990,1781661033000,-338.0,0.00023,2]
[425296994,1781661033000,-151.0,0.000235,2]
[425296993,1781661033000,-16924.83,0.00023258,7]
[425296967,1781661033000,-153.0,0.00021,2]
[425296973,1781661033000,-17080.91,0.00021629,2]
[425296971,1781661033000,-261.59766894,0.000214,7]
[425296974,1781661033000,-5012.72868597,0.0002167,2]
[425296972,1781661033000,-166.66,0.00021444,2]
[425296970,1781661033000,-10392.96,0.00021273,2]
[425296975,1781661033000,-409.0,0.0002167,2]
[425296989,1781661033000,-240.0,0.00023,2]
[425296977,1781661033000,-3189.4347,0.00021818,2]
[425296978,1781661033000,-166.66,0.00021877,2]
[425296979,1781661033000,-5000.0,0.00021918,2]
[425296976,1781661033000,-413.0,0.0002167,2]
[425296985,1781661033000,-166.66,0.0002231,30]
[425296987,1781661033000,-166.66,0.00022743,30]
[425296980,1781661033000,-240.0,0.00022,2]
[425296991,1781661033000,-153.0,0.00023,2]
[425296986,1781661033000,-1776.02,0.00022466,2]
[425296988,1781661033000,-8000.0,0.00023,2]
[425296984,1781661033000,-270.0,0.00022,2]
[425296983,1781661033000,-153.0,0.00022,2]
[425296982,1781661033000,-241.0,0.00022,2]
[425296981,1781661033000,-338.0,0.00022,2]
[425296964,1781661033000,-240.0,0.00021,2]
[425297025,1781661039000,-188.52067621,0.0002488,2]
[425297024,1781661039000,-159.12446595,0.0002488,2]
[425297026,1781661039000,-152.57407692,0.0002488,2]
[425297022,1781661039000,-152.0,0.00018,2]
[425297023,1781661039000,-152.49,0.00024658,2]
[425297030,1781661040000,-304.37552147,0.0002488,2]
[425297029,1781661040000,-68.63388773,0.0002488,2]
[425297031,1781661040000,-229.55122399,0.0002488,2]
[425297033,1781661040000,-439.138,0.00024888,7]
[425297032,1781661040000,-278.12059165,0.00024888,7]
[425297041,1781661045000,-864.64,0.00024888,7]
[425297040,1781661045000,-152.01,0.00024658,2]
[425297047,1781661046000,-315.35064524,0.00024888,7]
[425297044,1781661046000,-597.39434932,0.00024888,7]
[425297045,1781661046000,-639.25951587,0.00024888,7]
[425297046,1781661046000,-463.11319434,0.00024888,7]
[425297043,1781661046000,-2497.58279932,0.00024888,7]
[425297053,1781661049000,189.534242,0.000294,120]
[425297055,1781661223000,2802557.17102129,0.00015,2]
[425297056,1781661260000,180.50050752,0.00015,2]
[425297062,1781661466000,854.2677635,9.04e-05,2]
[425297084,1781662231000,-108.52705474,0.000177,2]
[425297083,1781662231000,-856.52,0.00015068,7]
[425297085,1781662231000,-122.31303927,0.000177,2]
[425297089,1781662231000,-153.0,0.0001995,2]
[425297086,1781662231000,-284.68696073,0.0001995,15]
[425297088,1781662231000,-151.0,0.0001995,2]
[425297090,1781662231000,-151.0,0.0001995,2]
[425297091,1781662231000,-151.0,0.0001995,2]
[425297087,1781662231000,-509.7808516,0.0001995,15]
[425297121,1781662232000,-500.0,0.00021469,2]
[425297120,1781662232000,-340.74855234,0.00021469,2]
[425297117,1781662232000,-1396.0,0.00021,2]
[425297118,1781662232000,-400.0,0.00021229,2]
[425297125,1781662232000,-527.08316082,0.0002147,2]
[425297106,1781662232000,-402.0,0.0002,2]
[425297119,1781662232000,-500.0,0.00021469,2]
[425297116,1781662232000,-202.0,0.00021,2]
[425297114,1781662232000,-180.0,0.00021,2]
[425297115,1781662232000,-253.0,0.00021,2]
[425297111,1781662232000,-219.3251571,0.00020313,2]
[425297109,1781662232000,-410.0,0.0002,2]
[425297110,1781662232000,-406.0,0.0002,2]
[425297108,1781662232000,-398.0,0.0002,2]
[425297112,1781662232000,-408.0,0.00020717,2]
[425297097,1781662232000,-2659.67,0.0002,2]
[425297104,1781662232000,-411.0,0.0002,2]
[425297107,1781662232000,-402.0,0.0002,2]
[425297105,1781662232000,-398.0,0.0002,2]
[425297103,1781662232000,-405.0,0.0002,2]
[425297100,1781662232000,-202.0,0.0002,2]
[425297096,1781662232000,-152.0,0.0001995,2]
[425297101,1781662232000,-408.0,0.0002,2]
[425297098,1781662232000,-180.0,0.0002,2]
[425297099,1781662232000,-253.0,0.0002,2]
[425297095,1781662232000,-151.0,0.0001995,2]
[425297092,1781662232000,-151.0,0.0001995,2]